{"text_format":"1","workbook":"xlsx","n_sheets":2,"sheets":["文字数調整","文字数記号指定"],"not_rendered":{"charts":0,"images":0,"macros":1,"external_links":1,"defined_names":11,"comments":0,"pivot_tables":0},"unopened":[],"bounds":{"document_bytes":16777216,"sheet_cells":100000,"rows_first":2000,"rows_last":500,"rows_between":2000,"halvings":0,"cell_chars":16384,"cell_head_chars":4096},"cells_cut":0,"cells_raw":0,"read":"whole","date_system":"1900"}

{"sheet":"文字数調整","index":0,"n_rows":6,"n_cols":6,"rows_kept":6,"cut":false,"hidden":false,"merged":[]}
["タイトル","調整前_文章","調整前_バイト数","調整後_文章","調整後_バイト数","確認"]
["三びきの子ブタ","昔、おばあさんと三匹の子ブタがいました。<BR>ある時、おばあさんが子ブタたちに言いました。<BR>「この家にはもう食べる物がないよ。みんなここを出て、幸せをおさがし。」<BR>そこで、三匹の子ブタは、それぞれに家を出ました。<BR>初めに家を出た子ブタは、わらで家を造りました。<BR>すると間もなくオオカミがやってきました。<BR>「子ブタや子ブタ。わたしを家に入れておくれ。」<BR>「いやだ、食べられちゃうもの。」と、子ブタが言うと、オオカミは笑って、<BR>「わらの家なんか、ふっふーのふーとひとふきさ。」<BR>そして、ふっふーのふーとわらの家を吹き飛ばして、子ブタを食べてしまいました。<BR>二番目に家を出た子ブタは、木の枝で家を造りました。<BR>すると、やはりオオカミがやってきて、<BR>「木の枝の家なんか、ふっふーのふーを二回さ。」<BR>そして、ふっふーのふー、ふっふーのふーで 家を吹き飛ばして、子ブタを食べてしまいました。<BR>三番目に家を出た子ブタは、レンガで家を造りました。<BR>レンガの家は、オオカミが何回ふっふーのふーと頑張っても、吹き飛びません。<BR>怒ったオオカミは、「覚えていろ。必ずおまえを食べてやる。」と言って、帰っていきました。<BR>次の日、オオカミがやってきて、子ブタに呼び掛けました。<BR>「美味しいカブがなっている畑に行こうよ。」<BR>「いいよ。何時に行くの？」<BR>子ブタが言うと、オオカミは、「六時だよ。」と答えたので、子ブタは五時に畑に行って、カブを全部取ってしまいました。<BR>オオカミは悔しがって、また言いました。<BR>「明日の四時に、りんごを取りに行こう。」<BR>そこで 子ブタは三時に行って、りんごを全部もいできました。<BR>怒ったオオカミは、子ブタの家の屋根に登り、煙突から家の中に入ろうと考えました。<BR>子ブタは、煙突の下で火を燃して、大きな鍋でお湯を沸かしました。<BR>煙突からおりてきたオオカミは、そのお湯の中にボチャーン！　と落ちました。<BR>「あつい、あついよー！　助けてくれー！」<BR>泣きさけぶオオカミに、子ブタが言いました。<BR>「じゃあ、もう悪い事はしないか？」<BR>「しない、しない」<BR>「じゃあ、食べた子ブタたちをかえすか？」<BR>「かえす、かえす。だから助けてくれー！」<BR>「よし、約束だぞ」<BR>そういって、オオカミをナベから出してやると、オオカミは食べた子ブタたちをはき出して、泣きながら山に逃げていきました。<BR>助かった子ブタたちはレンガの家で、なかよく暮らしました。",{"$f":"LENB(SUBSTITUTE(B2,\"<BR>\",\"改\"))","v":2010},{"$f":"OverByteDelete(B2,文字数記号指定!$A$3,1000)","v":"昔、おばあさんと三匹の子ブタがいました。<BR>ある時、おばあさんが子ブタたちに言いました。<BR>「この家にはもう食べる物がないよ。みんなここを出て、幸せをおさがし。」<BR>そこで、三匹の子ブタは、それぞれに家を出ました。<BR>初めに家を出た子ブタは、わらで家を造りました。<BR>すると間もなくオオカミがやってきました。<BR>「子ブタや子ブタ。わたしを家に入れておくれ。」<BR>「いやだ、食べられちゃうもの。」と、子ブタが言うと、オオカミは笑って、<BR>「わらの家なんか、ふっふーのふーとひとふきさ。」<BR>そして、ふっふーのふーとわらの家を吹き飛ばして、子ブタを食べてしまいました。<BR>二番目に家を出た子ブタは、木の枝で家を造りました。<BR>すると、やはりオオカミがやってきて、<BR>「木の枝の家なんか、ふっふーのふーを二回さ。」<BR>そして、ふっふーのふー、ふっふーのふーで 家を吹き飛ばして、子ブタを食べてしまいました。<BR>三番目に家を出た子ブタは、レンガで家を造りました。<BR>レンガの家は、オオカミが何回ふっふーのふーと頑張っても、吹き飛びません。<BR>怒ったオオカミは、「覚えていろ。必ずおまえを食べてやる。」と言って、帰っていきました。"},{"$f":"LENB(SUBSTITUTE(D2,\"<BR>\",\"改\"))","v":987},{"$f":"B2=D2","v":false}]
["ジャックとまめの木","むかしむかし、ジャックと言う男の子が母親と一緒に暮らしていました。<BR>二人はとても貧乏で、とうとう、おかねになるものは、たった一ぴきのこった牝牛（めうし）だけになってしまいました。<BR>そこで、母親は、ジャックに<BR>「ほんとうに、つらいけれど、あの牝牛を、手ばなさなければならないことになったのだよ。市場まで牛をつれて行って、たかく売って来ておくれな。」といいました。ジャックは、牛をひっぱって出かけました。<BR>しばらくあるいて行くと、むこうから、肉屋の親方がやって来て、<BR>「これこれ、牝牛なんかひっぱって、どこへ行くのだい。」と、親方は声をかけました。<BR>「売りに行くんだよ。」と、ジャックはこたえると、<BR>「ふうん。」と、親方はいいながら、片手にもった帽子から音がするので、なかをのぞくときみょうな形をした豆がみえ、ジャックはそれがほしくなりました。<BR>「坊や、これがほしいんだろう。いけない、いけない、こりゃあふしぎな、魔法の豆さ。ただではあげられない。どうだ、その牝牛と、とりかえっこしようかね。」<BR>ジャックは、そのまま、牝牛と豆の袋ととりかえっこし、豆の袋をかかえて、うちまでとんでかえりました。 「おかあさん、きょうはほんとに、うまくいったよ。」と、そういって、牛と豆のとりかえっこした話をしましたが、それを聞いた母親は、<BR>「まあ、ほんとにあきれてしまう。こんなつまらない、えんどう豆にだいじな牝牛一ぴき、なくしてしまうなんて、まあ、このばかな子をどうしましょう。」<BR>母親はぷんぷんおこって、窓のそとへ袋の中の豆をなげすてて、なさけなさそうに泣きだしました。<BR>ジャックはじぶんもかなしくなり、おなかのすいたまま、ころんとねてしまいました。<BR><BR>そのあくる朝、ジャックは目をさまし、ふと窓のそとをみました。すると、きのう庭になげすてた豆の種から、芽が生えて、ひと晩のうちに、ふとい、じょうぶそうな豆の大木が、みあげるほどたかくのびているではありませんか。<BR>豆の木は、空の上までものびていました。<BR>「あれをつたわって、のぼって行ったら、どこまで行けるんだろう。」<BR>ジャックはさっそく、豆の木をどんどんと登り、雲を越えても、豆の木はまだまだ続き、そしてとうとう、ジャックはてっぺんに着きました。<BR>そこには、大きなお城がありました。<BR>とんとんと門をたたくと、なかから、鬼のお上（かみ）さんが出て来て、ジャックに気が付くと、<BR>「あんたどこから来たんだい。ここは、人くい鬼のうちだから、みつかると、子供は晩のごはんのかわりに、すぐたべられてしまうよ。」といいました。その時、ずしん、ずしん、地ひびきするほど大きな足音がきこえて来ました。それは主人の人くい鬼が、そとからかえって来たのです。鬼のお上さんは、<BR>「しかたないね。こっちへきなさい。」そういって、大あわてにあわてて、ジャックを、だんろの中にかくしてしまいました。<BR>鬼は、へやの中にはいると、たれだってびっくりしてふるえ上がるような大ごえで、<BR>「フン、フン、フン、子供のにおいがするぞ。生きていようが死んでよが、骨ごとひいてパンにしよう。」<BR>と、いいました。すると、お上さんが、<BR>「いいえ、それはあなたが、つかまえて、土のろうに入れてあるひとたちの、においでしょう。」といいました。<BR>けれど鬼の大男は、まだきょろきょろそこらを見まわして、鼻をくんくんやっていました。でも、どうしても、ジャックをみつけることができません。<BR>とうとうあきらめて、鬼は、椅子の上に腰をおろし、そしてがつがつ、がぶがぶ、たべたりのんだりしはじめ、たらふくたべてのんだあげく、お上さんに、<BR>「おい、にわとりをつれてこい。」といいつけました。<BR>それは、ふしぎなめんどりで、テーブルの上にのせて、<BR>「うめ。」といいますと、すぐ金のたまごをひとつ生みました。鬼がまた、<BR>「うめ。」といいますと、またひとつ、金のたまごを生みました。<BR>「やあ、ずいぶん、とくなにわとりだな。あれを持って帰ればお母さんも喜ぶに違いない。」と、ジャックはそうおもいました。<BR>鬼はおもしろがって、あとからあとから、いくつもいくつも、金のたまごを生ましているうち、おなかがいっぱいでねむたくなったようで、すごい大いびきを立てながら、ぐっすりねこんでしまいました。<BR>ジャックは、鬼がすっかりねむったのを見て、そっとだんろの中からぬけだしテーブルの上のめんどりをかかえ、すたこらお城を出て行きました。それから、どんどん、どんどん、かけだして行って、豆の木のはしごのかかっている所までくると、するするとつたわっておりて、うちへかえりました。<BR>ジャックのおかあさんは、むすこがぶじでかえって来たので、とてもよろこびました。それからは、ジャックのもってかえった、金のたまごを生むにわとりのおかげで、おや子はお金もちにもなりましたし、しあわせにもなりました。<BR><BR>しばらくすると、ジャックはまた、もういちどお城に行ってみたくなり、豆の木のはしごを、またするするとのぼって行きました。鬼のお城につき、今度は、あかがねの箱の中にかくれていると、大男がかえって来て、またそこらをくんくんかいでまわりましたが、ジャックは、みつかりませんでした。<BR>大男は、晩の食事を食べたあと、こんどは、金や銀のおたからのたくさんつまった袋を出させて、それをテーブルの上にあけて、一枚一枚かぞえてあそんでいましたが、ま袋の中にしまって、ひもをかたくしめました。そして、大あくびをひとつして、それからぐうぐう、大いびきでねてしまいました。<BR>そこで、ジャックは、そろりそろり、金と銀のおたからのいっぱいつまった袋を、両方の腕に、しっかりかかえ、にげだして行きました。ところが、この袋の番人に、一ぴきの小犬がつけてあったので、そいつが、きゃんきゃんほえだしました。<BR>ジャックは、だめかとおもいましたが、大男は、よくねていて、目をさましませんでした。ジャックはむちゅうで、かけて行って、とうとう豆の木のはしごに行きつきました。<BR>おもたい金と銀の袋を何度も落としそうになりましたが、それでも我慢し、豆の木のはしごをおりました。<BR>うちまでたどりつくと、おかあさんは、ジャックが戻ってきたので大喜びし、お金がたくさんできたときいて、よけいげんきになりました。<BR>こうして、またしばらくの間、ジャックは家でおとなしくしていましたが、またお城に行ってみたくなったので、そっと豆の木のはしごをのぼりました。お城につくと、すぐに大男がかえってきたので、あわてて、今度はお釜（かま）のなかにかくれました。<BR>さて、それから鬼の大男の晩飯がすむと、お上さんに、<BR>「にわとりはとられる、金の袋、銀の袋はぬすまれる、しかたがない、こん夜はハープでもならすかな。」といいました。<BR>ジャックが、そっとお釜のふたをあけてのぞいていると、玉でかざった、みごとなハープのたて琴がありました。<BR>鬼の大男は、ハープをテーブルの上にのせて、<BR>「なりだせ。」というと、ハープは、ひとりでになりだしました。しかもその音（ね）のうつくしいこと、ジャックは、金のたまごのにわとりよりも、金と銀とのつまった袋よりも、もっとこのハープがほしくなりました。<BR>そのうち、ハープの音楽を子守うたにして、鬼も、いい心地でねむってしまったので、ジャックは、そっとお釜の中からぬけだすと、ハープをかかえてにげだしました。ところが、このハープには、魔法がしかけてあって、大きな声で、<BR>「おきろよ、だんなさん、おきろよ、だんなさん。」と、どなり始めたので、大男も目をさまし、むうんと立ち上がってみると、ちっぽけな小僧が、大きなハープをかかえて、にげて行くのに気づきました。<BR>「待て小僧、きさま、にわとりをぬすんで、金の袋、銀の袋をぬすんで、こんどはハープまでぬすむのかあ。」と、大男はわめきながら、あとを追っかけました。<BR>「つかまるならつかまえてみろ。」<BR>ジャックは、まけずにどなりながら、それでもいっしょうけんめいかけました。<BR>ジャックは、ハープをかかえて、豆の木のはしごをおりはじめ、はるか目の下に、おかあさんが、泣きはらした目で、空をみつめていました。<BR>そうこうするうち、大男が追いついてきて、あと一歩のところまできています。<BR>「おかあさん、斧（おの）をもってきておくれー。はやく、はやく。」と、ジャックは、上からせいいっぱいさけびました。<BR>大男はみしり、みしり、はしごをつたわって来ており、ジャックは、たかい上からとびおりました。<BR>そこへおかあさんが、斧をもってかけつけたので、ジャックは斧をふるって、はしごの根もとから、豆の木をぷっつり切りはなしました。豆の木は切れて、まだはしごの途中にいた大男は高い空の上から落ちていき、そのままどこかへ消えてしまいました。<BR>それからジャックは、お母さんと二人でいつまでも幸せに暮らしました。",7297,{"$f":"OverByteDelete(B3,文字数記号指定!$A$3,1000)","v":"むかしむかし、ジャックと言う男の子が母親と一緒に暮らしていました。<BR>二人はとても貧乏で、とうとう、おかねになるものは、たった一ぴきのこった牝牛（めうし）だけになってしまいました。<BR>そこで、母親は、ジャックに<BR>「ほんとうに、つらいけれど、あの牝牛を、手ばなさなければならないことになったのだよ。市場まで牛をつれて行って、たかく売って来ておくれな。」といいました。ジャックは、牛をひっぱって出かけました。<BR>しばらくあるいて行くと、むこうから、肉屋の親方がやって来て、<BR>「これこれ、牝牛なんかひっぱって、どこへ行くのだい。」と、親方は声をかけました。<BR>「売りに行くんだよ。」と、ジャックはこたえると、<BR>「ふうん。」と、親方はいいながら、片手にもった帽子から音がするので、なかをのぞくときみょうな形をした豆がみえ、ジャックはそれがほしくなりました。<BR>「坊や、これがほしいんだろう。いけない、いけない、こりゃあふしぎな、魔法の豆さ。ただではあげられない。どうだ、その牝牛と、とりかえっこしようかね。」<BR>ジャックは、そのまま、牝牛と豆の袋ととりかえっこし、豆の袋をかかえて、うちまでとんでかえりました"},{"$f":"LENB(SUBSTITUTE(D3,\"<BR>\",\"改\"))","v":988},{"$f":"B3=D3","v":false}]
["ウサギとカメ","カメが、ゆっくりゆっくり道を歩いていました。<BR>そこへウサギが、ぴょんぴょんと跳ねながらやって来て、<BR>「」、ウサギは、笑って言いました。<BR>「いざっていうのは、いつのことだい。、」<BR>それから、ウサギは少し考えてから、、「よし、明日の朝、向こうの丘までかけくらべをしよう。先についた方が勝ちさ。」<BR>「分かった。競争しよう。」、カメは答えました。<BR>カメとウサギは丘のてっぺん目指して、よーい、どんです。<BR>坂道まで来たウサギは振り返りましたが、カメの姿はまったく見えません。<BR>カメはずいぶんたってから、ウサギの所まで来ました。<BR>でも、寝ているウサギを見て、にっこり笑いながら言いました。<BR>",578,{"$f":"OverByteDelete(B4,文字数記号指定!$A$3,1000)","v":"カメが、ゆっくりゆっくり道を歩いていました。<BR>そこへウサギが、ぴょんぴょんと跳ねながらやって来て、<BR>「」、ウサギは、笑って言いました。<BR>「いざっていうのは、いつのことだい。、」<BR>それから、ウサギは少し考えてから、、「よし、明日の朝、向こうの丘までかけくらべをしよう。先についた方が勝ちさ。」<BR>「分かった。競争しよう。」、カメは答えました。<BR>カメとウサギは丘のてっぺん目指して、よーい、どんです。<BR>坂道まで来たウサギは振り返りましたが、カメの姿はまったく見えません。<BR>カメはずいぶんたってから、ウサギの所まで来ました。<BR>でも、寝ているウサギを見て、にっこり笑いながら言いました。<BR>"},578,true]
["アリとキリギリス","夏の日差しが、かんかん照りつける道を、一匹のありが、大きいなパンのかけらを背負って歩いていました。すると、道端の草むらで、遊んでいたきりぎりすが声をかけました。<BR>「こんな暑い日に、何をしているんだい。」<BR>「冬にそなえて、食べ物を家に、運んでいるんですよ。」<BR>ありは答えると、忙しそうに、通り過ぎて行きました。<BR>「この暑い日に、一生懸命働くなんて、ばかなやつだなあ。」<BR>きりぎりすは、ありをばかにして、笑いながら見送りました。<BR>きりぎりすは、昼は寝てばかり、夜になると、仲間の虫たちと音楽会を開いて、楽器を弾いたり、踊ったり…。 そんなことをしながら、夏の間中、遊び暮らしていました。<BR><BR>やがて、夏が終わり、秋がやってきましたが、きりぎりすはあいかわらず、働こうとしませんでした。<BR>野原の草が枯れ、木の葉が散ってしまうと、北風と一緒に、冬が、駆け足でやってきました。<BR>「寒い。」<BR>きりぎりすは、枯れ草のかげで、震えていました。寒くて、歌をうたう、元気なんかありません。<BR>きりぎりすはお腹もすいていましたが、食べるものなど、どこにもありません。<BR>「そうだ。ありさんに頼んでみよう。」<BR>きりぎりすは、ありが、夏の間中、せっせと食べ物を家に運んでいたことを、思い出し、さっそく、ありの家を訪ねていきました。<BR>「ありさん、お願いがあるんだけど。」<BR>「どんなことでしょう。」<BR>「すこしでいいたら、何か、食べ物を分けてもらえませんか。」<BR>きりぎりすは恥ずかしそうに言うと、ありは、<BR>「きりぎりすさん。あなたは、夏の間、働いているわたしをばかにしていたではありませんか。悪いけど、お断りします。」 と答えました。<BR>「そんなことを言わずに、何とか頼むよ。」<BR>きりぎりすは、ありに向かって手を合わせ、涙を流して、<BR>「ごめんなさい。ぼくが、間違っていたんだ。」<BR>と、謝りました。<BR>ありは、気の毒になり、食べ物のかけらをひとつもってきて、きりぎりすに分けてやりました。<BR>「ありさん、ありがとう。これからは、まじめに働くことにするよ。」<BR>きりぎりすは、何度もお礼を言いました。<BR>いつのまにか、雪が降りはじめ、きりぎりすは、食べ物のかけらをしっかり背負って、とぼとぼと、帰って行きました。",1858,{"$f":"OverByteDelete(B5,文字数記号指定!$A$3,1000)","v":"夏の日差しが、かんかん照りつける道を、一匹のありが、大きいなパンのかけらを背負って歩いていました。すると、道端の草むらで、遊んでいたきりぎりすが声をかけました。<BR>「こんな暑い日に、何をしているんだい。」<BR>「冬にそなえて、食べ物を家に、運んでいるんですよ。」<BR>ありは答えると、忙しそうに、通り過ぎて行きました。<BR>「この暑い日に、一生懸命働くなんて、ばかなやつだなあ。」<BR>きりぎりすは、ありをばかにして、笑いながら見送りました。<BR>きりぎりすは、昼は寝てばかり、夜になると、仲間の虫たちと音楽会を開いて、楽器を弾いたり、踊ったり…。 そんなことをしながら、夏の間中、遊び暮らしていました。<BR><BR>やがて、夏が終わり、秋がやってきましたが、きりぎりすはあいかわらず、働こうとしませんでした。<BR>野原の草が枯れ、木の葉が散ってしまうと、北風と一緒に、冬が、駆け足でやってきました。<BR>「寒い。」<BR>きりぎりすは、枯れ草のかげで、震えていました。寒くて、歌をうたう、元気なんかありません。<BR>きりぎりすはお腹もすいていましたが、食べるものなど、どこにもありません。<BR>「そうだ。ありさんに頼んでみよう。」"},977,false]
["北風と太陽","あるひのこと、きたかぜが たいように ちからじまんをしています。<BR>きたかぜが いいました。<BR>「ぼくは どんなものでも かんたんに ふきとばすことが できるよ。せかいで いちばんの つよいのは やっぱりぼくだね。」<BR>すると たいようは いいました。<BR>「ふふん。たしかに きみは ちからもちだ。でも、いちばん っていうのは どうかな？」<BR>そこで ふたりは ちからくらべを することに しました。<BR>「よし、それでは ちから くらべを してみよう。あそこを あるいている たびびとの きている ふくを ぬがせたほうが かちだよ。」<BR>「よし、いいだろう。さいしょは きたかぜくん、 きみの ばんだよ。」<BR><BR>きたかぜは ちからを こめて たびびとに かぜを ふきかけます。<BR>たびびとのふくを ふきとばそうと 考えたのですが、たびびとの ふくは ぬげません。<BR>「ああ、今日はなんて さむいひなんだ。」<BR>きたかぜは さらに ちからを こめて かぜを ふきつけます。<BR>「ぶうぉー！ ぶうぉー！」<BR>ところが ふくを ふきとばすどころか、たびびとは さむがって コートを さらに着てしまったのです。<BR>「あー さむい さむい！」<BR>たびびとは、風にとばされないよう服をしっかり押さえてしまい、きたかぜは とうとう あきらめました。<BR>「きたかぜくん。どうやら だめなようだね。さ、こんどは ぼくの ばんだよ。みていて ごらん」<BR><BR>たいようは そういうと さんさんと かがやきはじめたのです。<BR>ひえきった そのばしょは みるみると あたたかく なっていったのでした。<BR>「あー、あつい、あつい。きょうは なんという ひだ！さむくなったり あつくなったり！もう、たまらん！」<BR>そういうと たびびとは おもわず ふくを ぬいでしまいました。<BR>それをみた きたかぜは たいように いいました。<BR>「なんでも ちからずくで すまそうとした ぼくが まちがっていたね。ぼくの まけだよ。」<BR>きたかぜは はんせいし それからというものじぶんの ちからを じまんすることは にどと なくなったのです。",1663,{"$f":"OverByteDelete(B6,文字数記号指定!$A$3,1000)","v":"あるひのこと、きたかぜが たいように ちからじまんをしています。<BR>きたかぜが いいました。<BR>「ぼくは どんなものでも かんたんに ふきとばすことが できるよ。せかいで いちばんの つよいのは やっぱりぼくだね。」<BR>すると たいようは いいました。<BR>「ふふん。たしかに きみは ちからもちだ。でも、いちばん っていうのは どうかな？」<BR>そこで ふたりは ちからくらべを することに しました。<BR>「よし、それでは ちから くらべを してみよう。あそこを あるいている たびびとの きている ふくを ぬがせたほうが かちだよ。」<BR>「よし、いいだろう。さいしょは きたかぜくん、 きみの ばんだよ。」<BR><BR>きたかぜは ちからを こめて たびびとに かぜを ふきかけます。<BR>たびびとのふくを ふきとばそうと 考えたのですが、たびびとの ふくは ぬげません。<BR>「ああ、今日はなんて さむいひなんだ。」<BR>きたかぜは さらに ちからを こめて かぜを ふきつけます。<BR>「ぶうぉー！ ぶうぉー！」<BR>ところが ふくを ふきとばすどころか、たびびとは さむがって コートを さらに着てしまったのです。<BR>「あー さむい さむい！」"},949,false]

{"sheet":"文字数記号指定","index":1,"n_rows":3,"n_cols":1,"rows_kept":3,"cut":false,"hidden":false,"merged":[]}
["■文字数調整対象記号(カンマ区切りで指定)"]
["文字数調整対象記号"]
["<BR>,。,！"]